fUSD/lending_fUSD_20260530
["ID","MTS","AMOUNT","RATE_DAILY","PERIOD"]
[423402261,1780084732000,-500.0,0.00041205,120]
[423402254,1780084732000,-691.91,0.00041205,120]
[423402259,1780084732000,-500.0,0.00041205,120]
[423402257,1780084732000,-500.0,0.00041205,120]
[423402255,1780084732000,-500.0,0.00041205,120]
[423402258,1780084732000,-500.0,0.00041205,120]
[423402269,1780084733000,-726.77,0.00041205,120]
[423402263,1780084733000,-980.76,0.00041205,120]
[423402264,1780084733000,-500.0,0.00041205,120]
[423402265,1780084733000,-2149.57,0.00041205,120]
[423402266,1780084733000,-500.0,0.00041205,120]
[423402268,1780084733000,-825.46,0.00041205,120]
[423402267,1780084733000,-1037.72,0.00041205,120]
[423402271,1780084733000,-776.94,0.00041205,120]
[423402270,1780084733000,-838.75,0.00041205,120]
[423402272,1780084733000,-505.11,0.00041205,120]
[423402273,1780084733000,-1415.4,0.00041205,120]
[423402274,1780084733000,-2682.08,0.00041205,120]
[423402275,1780084733000,-500.0,0.00041205,120]
[423402276,1780084733000,-500.0,0.00041205,120]
[423402277,1780084733000,-500.0,0.00041205,120]
[423402278,1780084733000,-500.0,0.00041205,120]
[423402279,1780084733000,-6712.66,0.00041205,90]
[423402280,1780084734000,-500.0,0.00041205,120]
[423402281,1780084734000,-959.02,0.00041205,120]
[423402283,1780084734000,-539.02,0.00041205,120]
[423402282,1780084734000,-500.0,0.00041205,120]
[423402284,1780084734000,-1298.59,0.00041205,120]
[423402285,1780084734000,-4075.89,0.00041205,120]
[423402286,1780084734000,-980.28,0.00041205,120]
[423402287,1780084734000,-526.91,0.00041205,120]
[423402288,1780084734000,-500.0,0.00041205,120]
[423402290,1780084734000,-1334.43,0.00041205,120]
[423402289,1780084734000,-783.17,0.00041205,120]
[423402292,1780084734000,-925.27,0.00041205,120]
[423402291,1780084734000,-1250.0,0.00041205,120]
[423402293,1780084734000,-500.0,0.00041205,120]
[423402294,1780084734000,-500.0,0.00041205,120]
[423402295,1780084734000,-500.0,0.00041205,120]
[423402296,1780084734000,-1977.5,0.00041205,120]
[423402297,1780084735000,-397.7054454,0.00041205,120]
[423402298,1780084735000,-702.41,0.00041205,120]
[423402299,1780084735000,-1496.72,0.00041205,120]
[423402300,1780084735000,-500.0,0.00041205,120]
[423402301,1780084735000,-500.0,0.00041205,120]
[423402302,1780084735000,-1034.92,0.00041205,120]
[423402303,1780084735000,-500.0,0.00041205,120]
[423402304,1780084735000,-507.5,0.00041205,120]
[423402305,1780084735000,-500.0,0.00041205,120]
[423402307,1780084735000,-500.0,0.00041205,120]
[423402306,1780084735000,-500.0,0.00041205,120]
[423402309,1780084735000,-500.0,0.00041205,120]
[423402308,1780084735000,-2445.99,0.00041205,120]
[423402311,1780084735000,-500.0,0.00041205,120]
[423402310,1780084735000,-500.0,0.00041205,120]
[423402313,1780084735000,-2053.89,0.00041205,120]
[423402312,1780084735000,-1342.72,0.00041205,120]
[423402314,1780084736000,-500.0,0.00041205,120]
[423402315,1780084736000,-1416.97,0.00041205,120]
[423402316,1780084736000,-500.0,0.00041205,120]
[423402317,1780084736000,-1076.2,0.00041205,120]
[423402319,1780084736000,-1046.21,0.00041205,120]
[423402318,1780084736000,-500.0,0.00041205,120]
[423402321,1780084736000,-276.2754988,0.00041205,120]
[423402320,1780084736000,-500.0,0.00041205,120]
[423402322,1780084736000,-2278.73,0.00041205,120]
[423402323,1780084736000,-500.0,0.00041205,120]
[423402324,1780084736000,-1310.58,0.00041205,120]
[423402325,1780084736000,-1156.28,0.00041205,120]
[423402326,1780084736000,-532.41,0.00041205,120]
[423402328,1780084736000,-449.2659792,0.00041205,120]
[423402327,1780084736000,-2880.73,0.00041205,120]
[423402329,1780084736000,-500.0,0.00041205,120]
[423402330,1780084736000,-982.34,0.00041205,120]
[423402331,1780084737000,-523.88,0.00041205,120]
[423402332,1780084737000,-552.1425837,0.00041205,120]
[423402333,1780084737000,-500.0,0.00041205,120]
[423402335,1780084737000,-500.0,0.00041205,120]
[423402334,1780084737000,-959.42,0.00041205,120]
[423402336,1780084737000,-802.96,0.00041205,120]
[423402337,1780084737000,-3025.75,0.00041205,120]
[423402338,1780084737000,-1890.36,0.00041205,120]
[423402347,1780084737000,-1586.4,0.00041205,120]
[423402339,1780084737000,-918.29,0.00041205,120]
[423402342,1780084737000,-379.0449683,0.00041205,120]
[423402341,1780084737000,-639.58226258,0.00041205,120]
[423402343,1780084737000,-500.0,0.00041205,120]
[423402344,1780084737000,-500.0,0.00041205,120]
[423402345,1780084737000,-1604.26,0.00041205,120]
[423402346,1780084737000,-500.0,0.00041205,120]
[423402340,1780084737000,-500.0,0.00041205,120]
[423402354,1780084738000,-810.97,0.00041205,120]
[423402353,1780084738000,-3366.6,0.00041205,120]
[423402351,1780084738000,-5204.91,0.00041205,120]
[423402355,1780084738000,-500.0,0.00041205,120]
[423402350,1780084738000,-500.0,0.00041205,120]
[423402349,1780084738000,-504.56,0.00041205,120]
[423402348,1780084738000,-939.59,0.00041205,120]
[423402352,1780084738000,-672.88,0.00041205,120]
[423402357,1780084738000,-667.47,0.00041205,120]
[423402358,1780084738000,-510.22,0.00041205,120]
[423402359,1780084738000,-1780.96,0.00041205,120]
[423402365,1780084738000,-500.0,0.00041205,120]
[423402361,1780084738000,-500.0,0.00041205,120]
[423402360,1780084738000,-500.0,0.00041205,120]
[423402363,1780084738000,-500.0,0.00041205,120]
[423402362,1780084738000,-544.72,0.00041205,120]
[423402364,1780084738000,-500.0,0.00041205,120]
[423402356,1780084738000,-500.0,0.00041205,120]
[423402366,1780084739000,-2726.67,0.00041205,30]
[423402367,1780084739000,-670.36,0.00041205,120]
[423402368,1780084739000,-656.03,0.00041205,120]
[423402369,1780084739000,-500.0,0.00041205,120]
[423402371,1780084739000,-500.0,0.00041205,120]
[423402370,1780084739000,-500.0,0.00041205,30]
[423402373,1780084739000,-500.0,0.00041205,120]
[423402372,1780084739000,-702.42,0.00041205,120]
[423402376,1780084739000,-4034.16,0.00041205,120]
[423402374,1780084739000,-3289.25,0.00041205,120]
[423402377,1780084739000,-1213.63,0.00041205,120]
[423402379,1780084739000,-500.0,0.00041205,120]
[423402378,1780084739000,-4644.68,0.00041205,120]
[423402381,1780084739000,-2929.23,0.00041205,120]
[423402380,1780084739000,-220.94103995,0.00041205,120]
[423402382,1780084739000,-633.23,0.00041205,120]
[423402383,1780084739000,-2983.42,0.00041205,120]
[423402375,1780084739000,-597.5,0.00041205,120]
[423402389,1780084740000,-505.9,0.00041205,90]
[423402388,1780084740000,-500.0,0.00041205,120]
[423402390,1780084740000,-500.0,0.00041205,120]
[423402385,1780084740000,-500.0,0.00041205,120]
[423402384,1780084740000,-749.93,0.00041205,120]
[423402387,1780084740000,-500.0,0.00041205,120]
[423402391,1780084740000,-1418.3,0.00041205,120]
[423402386,1780084740000,-563.16,0.00041205,120]
[423402394,1780084740000,-500.0,0.00041205,120]
[423402393,1780084740000,-2003.02,0.00041205,120]
[423402396,1780084740000,-500.0,0.00041205,120]
[423402395,1780084740000,-500.0,0.00041205,120]
[423402398,1780084740000,-5270.75,0.00041205,120]
[423402400,1780084740000,-3366.81,0.00041205,120]
[423402397,1780084740000,-1134.48,0.00041205,120]
[423402399,1780084740000,-3122.4,0.00041205,120]
[423402392,1780084740000,-500.0,0.00041205,120]
[423402401,1780084741000,-500.0,0.00041205,120]
[423402402,1780084741000,-500.0,0.00041205,120]
[423402403,1780084741000,-765.9,0.00041205,120]
[423402404,1780084741000,-2172.9,0.00041205,120]
[423402405,1780084741000,-535.4,0.00041205,120]
[423402406,1780084741000,-4771.41,0.00041205,120]
[423402407,1780084741000,-216.25363872,0.00041205,120]
[423402410,1780084741000,-500.0,0.00041205,120]
[423402409,1780084741000,-500.0,0.00041205,120]
[423402412,1780084741000,-554.7827327,0.00041205,120]
[423402411,1780084741000,-500.0,0.00041205,120]
[423402414,1780084741000,-500.0,0.00041205,120]
[423402413,1780084741000,-1306.62,0.00041205,120]
[423402416,1780084741000,-218.13793675,0.00041205,120]
[423402415,1780084741000,-508.02,0.00041205,120]
[423402408,1780084741000,-3686.42,0.00041205,120]
[423402422,1780084742000,-2576.61,0.00041205,120]
[423402417,1780084742000,-500.0,0.00041205,120]
[423402418,1780084742000,-500.0,0.00041205,120]
[423402419,1780084742000,-2897.52,0.00041205,120]
[423402421,1780084742000,-500.0,0.00041205,120]
[423402420,1780084742000,-500.0,0.00041205,120]
[423402424,1780084742000,-562.54,0.00041205,120]
[423402423,1780084742000,-906.51,0.00041205,120]
[423402426,1780084742000,-500.0,0.00041205,120]
[423402427,1780084742000,-500.0,0.00041205,120]
[423402428,1780084742000,-500.0,0.00041205,120]
[423402429,1780084742000,-536.90933051,0.00041205,120]
[423402430,1780084742000,-3050.94,0.00041205,120]
[423402431,1780084742000,-4388.46,0.00041205,120]
[423402433,1780084742000,-572.41,0.00041205,120]
[423402425,1780084742000,-535.15,0.00041205,120]
[423402432,1780084742000,-2110.46,0.00041205,120]
[423402443,1780084743000,-970.88,0.00041205,120]
[423402439,1780084743000,-186.77810508,0.00041205,120]
[423402440,1780084743000,-4081.61,0.00041205,120]
[423402434,1780084743000,-500.0,0.00041205,120]
[423402438,1780084743000,-1858.82,0.00041205,120]
[423402436,1780084743000,-2715.81,0.00041205,120]
[423402435,1780084743000,-500.0,0.00041205,120]
[423402437,1780084743000,-574.79,0.00041205,120]
[423402442,1780084743000,-712.35,0.00041205,120]
[423402445,1780084743000,-879.24,0.00041205,120]
[423402444,1780084743000,-500.0,0.00041205,120]
[423402446,1780084743000,-1317.34,0.00041205,120]
[423402447,1780084743000,-2128.17,0.00041205,120]
[423402449,1780084743000,-1134.09,0.00041205,120]
[423402448,1780084743000,-590.49,0.00041205,120]
[423402450,1780084743000,-5876.14,0.00041205,120]
[423402451,1780084743000,-500.0,0.00041205,120]
[423402441,1780084743000,-670.18,0.00041205,120]
[423402458,1780084744000,-1152.63,0.00041205,120]
[423402455,1780084744000,-1087.09,0.00041205,120]
[423402457,1780084744000,-708.57,0.00041205,120]
[423402454,1780084744000,-586.25,0.00041205,120]
[423402452,1780084744000,-500.0,0.00041205,120]
[423402456,1780084744000,-4008.58,0.00041205,120]
[423402459,1780084744000,-500.0,0.00041205,120]
[423402453,1780084744000,-592.15,0.00041205,120]
[423402461,1780084744000,-597.33,0.00041205,120]
[423402462,1780084744000,-500.0,0.00041205,120]
[423402463,1780084744000,-500.0,0.00041205,120]
[423402464,1780084744000,-514.74,0.00041205,120]
[423402465,1780084744000,-578.03,0.00041205,120]
[423402467,1780084744000,-647.49872869,0.00041205,120]
[423402466,1780084744000,-4304.35,0.00041205,120]
[423402468,1780084744000,-500.0,0.00041205,120]
[423402460,1780084744000,-195.28138497,0.00041205,120]
[423402470,1780084745000,-6617.67,0.00041205,120]
[423402469,1780084745000,-500.0,0.00041205,120]
[423402471,1780084745000,-759.7,0.00041205,120]
[423402472,1780084745000,-2699.7,0.00041205,120]
[423402473,1780084745000,-2962.07,0.00041205,120]
[423402475,1780084745000,-500.0,0.00041205,120]
[423402474,1780084745000,-500.0,0.00041205,120]
[423402477,1780084745000,-500.0,0.00041205,60]
[423402479,1780084745000,-1145.03,0.00041205,120]
[423402478,1780084745000,-500.0,0.00041205,120]
[423402480,1780084745000,-1048.73,0.00041205,120]
[423402481,1780084745000,-3342.5,0.00041205,120]
[423402482,1780084745000,-500.0,0.00041205,120]
[423402483,1780084745000,-1023.84,0.00041205,120]
[423402484,1780084745000,-4156.48,0.00041205,120]
[423402476,1780084745000,-500.0,0.00041205,30]
[423402491,1780084746000,-3441.13,0.00041205,120]
[423402486,1780084746000,-500.0,0.00041205,120]
[423402488,1780084746000,-579.19,0.00041205,120]
[423402487,1780084746000,-2406.03,0.00041205,120]
[423402490,1780084746000,-500.0,0.00041205,120]
[423402489,1780084746000,-573.84,0.00041205,120]
[423402492,1780084746000,-500.0,0.00041205,120]
[423402485,1780084746000,-2737.65,0.00041205,120]
[423402494,1780084746000,-4620.88,0.00041205,120]
[423402495,1780084746000,-1446.5,0.00041205,120]
[423402496,1780084746000,-1441.29,0.00041205,120]
[423402498,1780084746000,-864.9,0.00041205,120]
[423402497,1780084746000,-500.0,0.00041205,120]
[423402499,1780084746000,-3228.8,0.00041205,120]
[423402500,1780084746000,-500.0,0.00041205,30]
[423402501,1780084746000,-500.0,0.00041205,120]
[423402493,1780084746000,-500.0,0.00041205,120]
[423402502,1780084747000,-815.65,0.00041205,60]
[423402504,1780084747000,-802.95,0.00041205,120]
[423402505,1780084747000,-500.0,0.00041205,120]
[423402506,1780084747000,-500.0,0.00041205,120]
[423402507,1780084747000,-5607.42,0.00041205,120]
[423402508,1780084747000,-500.0,0.00041205,120]
[423402509,1780084747000,-500.0,0.00041205,120]
[423402503,1780084747000,-1286.26,0.00041205,120]
[423402511,1780084747000,-7049.94,0.00041205,120]
[423402512,1780084747000,-1859.95,0.00041205,120]
[423402513,1780084747000,-500.0,0.00041205,120]
[423402514,1780084747000,-500.0,0.00041205,120]
[423402515,1780084747000,-1264.38,0.00041205,120]
[423402516,1780084747000,-1126.46,0.00041205,120]
[423402518,1780084747000,-500.0,0.00041205,120]
[423402517,1780084747000,-649.28,0.00041205,120]
[423402510,1780084747000,-4946.88,0.00041205,120]
[423402525,1780084748000,-3199.13,0.00041205,120]
[423402524,1780084748000,-617.74,0.00041205,120]
[423402523,1780084748000,-172.73854603,0.00041205,120]
[423402520,1780084748000,-500.0,0.00041205,120]
[423402521,1780084748000,-1726.08,0.00041205,120]
[423402519,1780084748000,-1126.98,0.00041205,120]
[423402522,1780084748000,-500.0,0.00041205,120]
[423402527,1780084748000,-1982.73,0.00041205,120]
[423402528,1780084748000,-500.0,0.00041205,120]
[423402530,1780084748000,-500.0,0.00041205,120]
[423402529,1780084748000,-500.0,0.00041205,120]
[423402532,1780084748000,-500.0,0.00041205,120]
[423402531,1780084748000,-579.85,0.00041205,120]
[423402534,1780084748000,-1719.53,0.00041205,120]
[423402533,1780084748000,-500.0,0.00041205,120]
[423402535,1780084748000,-662.03,0.00041205,120]
[423402526,1780084748000,-500.0,0.00041205,120]
[423402539,1780084749000,-500.0,0.00041205,120]
[423402537,1780084749000,-500.0,0.00041205,120]
[423402536,1780084749000,-1175.33,0.00041205,120]
[423402538,1780084749000,-500.0,0.00041205,120]
[423402541,1780084749000,-500.0,0.00041205,120]
[423402545,1780084749000,-1773.95,0.00041205,120]
[423402542,1780084749000,-3359.54,0.00041205,120]
[423402543,1780084749000,-500.0,0.00041205,120]
[423402544,1780084749000,-500.0,0.00041205,120]
[423402546,1780084749000,-2140.4,0.00041205,120]
[423402540,1780084749000,-3326.07,0.00041205,120]
[423402547,1780084750000,-833.93,0.00041205,120]
[423402549,1780084750000,-6866.64,0.00041205,120]
[423402548,1780084750000,-621.72,0.00041205,120]
[423402550,1780084750000,-640.57,0.00041205,120]
[423402551,1780084750000,-790.67,0.00041205,120]
[423402552,1780084750000,-500.0,0.00041205,120]
[423402554,1780084750000,-500.0,0.00041205,120]
[423402553,1780084750000,-500.0,0.00041205,120]
[423402556,1780084750000,-3792.98,0.00041205,120]
[423402557,1780084750000,-2609.54,0.00041205,120]
[423402558,1780084750000,-2437.03,0.00041205,120]
[423402560,1780084750000,-547.4,0.00041205,120]
[423402559,1780084750000,-1858.87,0.00041205,120]
[423402562,1780084750000,-1126.35,0.00041205,120]
[423402561,1780084750000,-501.79938049,0.00041205,120]
[423402563,1780084750000,-440.0694135,0.00041205,120]
[423402555,1780084750000,-976.17,0.00041205,120]
[423402570,1780084751000,-500.0,0.00041205,120]
[423402564,1780084751000,-500.0,0.00041205,120]
[423402565,1780084751000,-2028.88,0.00041205,120]
[423402567,1780084751000,-627.8202112,0.00041205,120]
[423402566,1780084751000,-500.0,0.00041205,120]
[423402568,1780084751000,-1347.19,0.00041205,120]
[423402569,1780084751000,-952.98,0.00041205,120]
[423402578,1780084751000,-899.71,0.00041205,120]
[423402572,1780084751000,-1152.16,0.00041205,120]
[423402573,1780084751000,-671.68,0.00041205,120]
[423402575,1780084751000,-500.0,0.00041205,120]
[423402574,1780084751000,-884.91,0.00041205,120]
[423402576,1780084751000,-1920.56,0.00041205,120]
[423402577,1780084751000,-500.0,0.00041205,120]
[423402579,1780084751000,-3430.9,0.00041205,120]
[423402571,1780084751000,-1631.86,0.00041205,120]
[423402586,1780084752000,-500.0,0.00041205,90]
[423402580,1780084752000,-500.0,0.00041205,120]
[423402582,1780084752000,-500.0,0.00041205,120]
[423402581,1780084752000,-500.0,0.00041205,120]
[423402583,1780084752000,-3635.75,0.00041205,120]
[423402585,1780084752000,-1809.98,0.00041205,120]
[423402584,1780084752000,-4110.8,0.00041205,120]
[423402587,1780084752000,-246.38256336,0.00041205,120]
[423402594,1780084752000,-500.0,0.00041205,120]
[423402590,1780084752000,-841.69,0.00041205,120]
[423402589,1780084752000,-500.0,0.00041205,120]
[423402591,1780084752000,-500.0,0.00041205,120]
[423402592,1780084752000,-500.0,0.00041205,120]
[423402593,1780084752000,-500.0,0.00041205,120]
[423402596,1780084752000,-500.0,0.00041205,120]
[423402595,1780084752000,-500.0,0.00041205,120]
[423402588,1780084752000,-500.0,0.00041205,120]
[423402597,1780084753000,-500.0,0.00041205,120]
[423402598,1780084753000,-661.46,0.00041205,120]
[423402599,1780084753000,-500.0,0.00041205,120]
[423402600,1780084753000,-2395.59,0.00041205,120]
[423402601,1780084753000,-500.0,0.00041205,120]
[423402602,1780084753000,-905.61,0.00041205,120]
[423402603,1780084753000,-305.90971507,0.00041205,120]
[423402604,1780084753000,-2954.71,0.00041205,120]
[423402606,1780084753000,-500.0,0.00041205,120]
[423402608,1780084753000,-500.0,0.00041205,120]
[423402607,1780084753000,-500.0,0.00041205,120]
[423402609,1780084753000,-500.0,0.00041205,120]
[423402610,1780084753000,-500.0,0.00041205,120]
[423402611,1780084753000,-518.56,0.00041205,120]
[423402612,1780084753000,-1763.63,0.00041205,120]
[423402605,1780084753000,-500.0,0.00041205,120]
[423402619,1780084754000,-2926.78,0.00041205,120]
[423402613,1780084754000,-500.0,0.00041205,120]
[423402614,1780084754000,-1112.42,0.00041205,120]
[423402615,1780084754000,-2439.46,0.00041205,120]
[423402616,1780084754000,-500.0,0.00041205,120]
[423402617,1780084754000,-500.0,0.00041205,120]
[423402618,1780084754000,-500.0,0.00041205,120]
[423402620,1780084754000,-2866.54,0.00041205,120]
[423402627,1780084754000,-2882.82,0.00041205,120]
[423402621,1780084754000,-500.0,0.00041205,120]
[423402628,1780084754000,-962.18,0.00041205,120]
[423402629,1780084754000,-500.0,0.00041205,120]
[423402626,1780084754000,-1002.79,0.00041205,120]
[423402622,1780084754000,-825.84,0.00041205,120]
[423402625,1780084754000,-500.0,0.00041205,120]
[423402623,1780084754000,-500.0,0.00041205,120]
[423402624,1780084754000,-1291.14,0.00041205,120]
[423402630,1780084755000,-1336.78,0.00041205,120]
[423402631,1780084755000,-500.0,0.00041205,120]
[423402632,1780084755000,-3193.82,0.00041205,120]
[423402633,1780084755000,-1115.74,0.00041205,120]
[423402634,1780084755000,-500.0,0.00041205,120]
[423402636,1780084755000,-500.0,0.00041205,120]
[423402635,1780084755000,-500.0,0.00041205,120]
[423402639,1780084755000,-500.0,0.00041205,120]
[423402641,1780084755000,-1729.3,0.00041205,120]
[423402640,1780084755000,-2228.08,0.00041205,120]
[423402642,1780084755000,-779.73,0.00041205,120]
[423402643,1780084755000,-500.0,0.00041205,120]
[423402644,1780084755000,-500.0,0.00041205,120]
[423402645,1780084755000,-500.0,0.00041205,120]
[423402637,1780084755000,-867.2,0.00041205,120]
[423402638,1780084755000,-1632.71,0.00041205,120]
[423402653,1780084756000,-4443.42,0.00041205,120]
[423402646,1780084756000,-500.0,0.00041205,120]
[423402647,1780084756000,-3062.0,0.00041205,120]
[423402648,1780084756000,-1621.13,0.00041205,120]
[423402649,1780084756000,-3013.78,0.00041205,120]
[423402651,1780084756000,-500.0,0.00041205,120]
[423402650,1780084756000,-500.0,0.00041205,120]
[423402652,1780084756000,-500.0,0.00041205,120]
[423402655,1780084756000,-2276.98,0.00041205,120]
[423402656,1780084756000,-500.0,0.00041205,120]
[423402657,1780084756000,-2908.55,0.00041205,31]
[423402658,1780084756000,-642.26,0.00041205,120]
[423402659,1780084756000,-500.0,0.00041205,120]
[423402660,1780084756000,-500.0,0.00041205,120]
[423402661,1780084756000,-857.11,0.00041205,120]
[423402662,1780084756000,-1221.17,0.00041205,120]
[423402654,1780084756000,-500.0,0.00041205,120]
[423402663,1780084757000,-491.22179618,0.00041205,120]
[423402664,1780084757000,-500.0,0.00041205,120]
[423402665,1780084757000,-500.0,0.00041205,120]
[423402666,1780084757000,-720.47,0.00041205,120]
[423402667,1780084757000,-561.22,0.00041205,120]
[423402668,1780084757000,-10337.12,0.00041205,120]
[423402669,1780084757000,-500.0,0.00041205,120]
[423402670,1780084757000,-6077.61,0.00041205,120]
[423402673,1780084757000,-2127.58,0.00041205,120]
[423402672,1780084757000,-500.0,0.00041205,120]
[423402675,1780084757000,-500.0,0.00041205,120]
[423402674,1780084757000,-665.76,0.00041205,120]
[423402676,1780084757000,-500.0,0.00041205,120]
[423402677,1780084757000,-500.0,0.00041205,120]
[423402678,1780084757000,-594.52,0.00041205,120]
[423402671,1780084757000,-500.0,0.00041205,120]
[423402679,1780084758000,-1324.41,0.00041205,120]
[423402680,1780084758000,-1099.74,0.00041205,120]
[423402685,1780084758000,-1578.12,0.00041205,120]
[423402681,1780084758000,-1116.87,0.00041205,120]
[423402683,1780084758000,-889.03,0.00041205,120]
[423402682,1780084758000,-1950.18,0.00041205,120]
[423402684,1780084758000,-500.0,0.00041205,120]
[423402686,1780084758000,-500.0,0.00041205,120]
[423402692,1780084758000,-1940.53,0.00041205,120]
[423402688,1780084758000,-500.0,0.00041205,120]
[423402694,1780084758000,-500.0,0.00041205,120]
[423402695,1780084758000,-2655.64,0.00041205,120]
[423402693,1780084758000,-500.0,0.00041205,120]
[423402687,1780084758000,-2853.4,0.00041205,120]
[423402689,1780084758000,-500.0,0.00041205,120]
[423402690,1780084758000,-500.0,0.00041205,120]
[423402691,1780084758000,-500.0,0.00041205,120]
[423402696,1780084759000,-557.70232778,0.00041205,120]
[423402698,1780084759000,-797.45,0.00041205,120]
[423402697,1780084759000,-500.0,0.00041205,120]
[423402700,1780084759000,-3135.34,0.00041205,120]
[423402699,1780084759000,-500.0,0.00041205,120]
[423402701,1780084759000,-604.32,0.00041205,120]
[423402702,1780084759000,-500.0,0.00041205,120]
[423402703,1780084759000,-707.96,0.00041205,120]
[423402705,1780084759000,-1447.48,0.00041205,120]
[423402706,1780084759000,-505.47,0.00041205,120]
[423402707,1780084759000,-776.02,0.00041205,120]
[423402708,1780084759000,-4055.01,0.00041205,120]
[423402709,1780084759000,-500.0,0.00041205,120]
[423402710,1780084759000,-871.54,0.00041205,120]
[423402711,1780084759000,-500.0,0.00041205,120]
[423402712,1780084759000,-2999.93,0.00041205,120]
[423402704,1780084759000,-827.09,0.00041205,120]
[423402718,1780084760000,-500.0,0.00041205,120]
[423402714,1780084760000,-700.93,0.00041205,120]
[423402713,1780084760000,-1118.25,0.00041205,120]
[423402715,1780084760000,-1466.68,0.00041205,120]
[423402716,1780084760000,-500.0,0.00041205,120]
[423402720,1780084760000,-500.0,0.00041205,120]
[423402717,1780084760000,-1114.58,0.00041205,120]
[423402719,1780084760000,-500.0,0.00041205,120]
[423402728,1780084760000,-2974.48,0.00041205,120]
[423402727,1780084760000,-2054.28,0.00041205,120]
[423402726,1780084760000,-500.0,0.00041205,120]
[423402722,1780084760000,-500.0,0.00041205,120]
[423402725,1780084760000,-3374.38,0.00041205,120]
[423402723,1780084760000,-500.0,0.00041205,120]
[423402721,1780084760000,-500.0,0.00041205,120]
[423402724,1780084760000,-500.0,0.00041205,120]
[423402736,1780084761000,-1009.44,0.00041205,120]
[423402729,1780084761000,-3195.91,0.00041205,120]
[423402731,1780084761000,-553.54416109,0.00041205,120]
[423402732,1780084761000,-500.0,0.00041205,120]
[423402734,1780084761000,-500.0,0.00041205,120]
[423402733,1780084761000,-890.35,0.00041205,120]
[423402735,1780084761000,-500.0,0.00041205,120]
[423402730,1780084761000,-500.0,0.00041205,120]
[423402737,1780084761000,-613.30979014,0.00041205,120]
[423402738,1780084761000,-1493.4,0.00041205,120]
[423402740,1780084761000,-811.08,0.00041205,120]
[423402741,1780084761000,-500.0,0.00041205,120]
[423402742,1780084761000,-571.16,0.00041205,120]
[423402743,1780084761000,-500.0,0.00041205,120]
[423402744,1780084761000,-10046.73,0.00041205,120]
[423402745,1780084761000,-705.86,0.00041205,120]
[423402739,1780084761000,-500.0,0.00041205,120]
[423402746,1780084762000,-2534.35,0.00041205,120]
[423402747,1780084762000,-500.0,0.00041205,120]
[423402748,1780084762000,-702.65,0.00041205,120]
[423402749,1780084762000,-1215.94,0.00041205,120]
[423402752,1780084762000,-500.0,0.00041205,120]
[423402750,1780084762000,-690.27,0.00041205,120]
[423402754,1780084762000,-500.0,0.00041205,120]
[423402755,1780084762000,-984.16,0.00041205,120]
[423402756,1780084762000,-500.0,0.00041205,120]
[423402758,1780084762000,-500.0,0.00041205,120]
[423402759,1780084762000,-1164.84,0.00041205,120]